fUST/lending_fUST_20250927
["ID","MTS","AMOUNT","RATE_DAILY","PERIOD"]
[387839759,1758915040507,-535.336775,0.00027273,7]
[387839760,1758915040517,-151.0,0.00027273,7]
[387839761,1758915040526,-151.0,0.00027273,7]
[387839762,1758915040536,-535.336775,0.00027273,7]
[387839763,1758915040546,-152.504496,0.00027273,7]
[387839764,1758915040555,-535.336775,0.00027273,7]
[387839765,1758915040565,-151.0,0.00027273,7]
[387839766,1758915040574,-151.0,0.00027273,7]
[387839767,1758915040584,-151.0,0.00027273,7]
[387839768,1758915040593,-383.781588,0.00027273,7]
[387839769,1758915040602,-383.781588,0.00027273,7]
[387839770,1758915040612,-383.781588,0.00027273,7]
[387839771,1758915040621,-151.0,0.00027273,7]
[387839772,1758915040630,-151.0,0.00027273,7]
[387839773,1758915040639,-383.781588,0.00027273,7]
[387839774,1758915040648,-151.0,0.00027273,7]
[387839775,1758915040657,-208.951521,0.00027273,7]
[387839776,1758915040667,-151.0,0.00027273,7]
[387839777,1758915040676,-397.69128544,0.00027287,2]
[387839778,1758915040685,-8533.4127039,0.00027366,2]
[387839779,1758915040695,-500.0,0.00027373,2]
[387839780,1758915040704,-500.0,0.00027373,2]
[387839781,1758915040714,-500.0,0.00027373,2]
[387839782,1758915040723,-190.60463269,0.00027373,2]
[387839783,1758915040732,-500.0,0.00027373,2]
[387839784,1758915040741,-500.0,0.00027373,2]
[387839785,1758915040751,-500.0,0.00027373,2]
[387839786,1758915040760,-500.0,0.00027373,2]
[387839787,1758915040770,-800.0,0.00027388,2]
[387839788,1758915040781,-500.0,0.00027421,5]
[387839789,1758915040790,-500.0,0.00027421,5]
[387839790,1758915040799,-1000.03115209,0.00027421,5]
[387839791,1758915040809,-1000.0,0.00027421,5]
[387839792,1758915040818,-1000.0,0.00027421,5]
[387839793,1758915040828,-1000.0,0.00027421,5]
[387839794,1758915040837,-85193.1542024,0.0002743,2]
[387839795,1758915040846,-1374.68836515,0.0002743,2]
[387839796,1758915040855,-31542.36452743,0.0002744,2]
[387839818,1758915043396,-2318.01112595,0.00024953,13]
[387839819,1758915043408,-2681.98887405,0.00024953,13]
[387839820,1758915043418,-151.0,0.0002699,7]
[387839821,1758915043428,-164.175513,0.00027273,7]
[387839822,1758915043438,-835.67760928,0.0002744,2]
[387839823,1758915043450,-1595.8,0.0002744,2]
[387839824,1758915043487,-18996.23992046,0.0002744,2]
[387839825,1758915043499,-3724.15376204,0.0002744,2]
[387839826,1758915043510,-1700.0,0.0002744,2]
[387839827,1758915043521,-357.46,0.0002744,2]
[387839828,1758915043544,-13079.52622857,0.0002744,2]
[387839846,1758915043873,-11277.0,0.0002744,2]
[387839859,1758915043983,-33313.17498897,0.0002744,2]
[387839863,1758915044015,-213.72265081,0.0002744,2]
[387839865,1758915044025,-30818.25522961,0.0002744,2]
[387839867,1758915044038,-877.02000001,0.0002744,2]
[387839898,1758915046565,-14.20418674,0.000242,2]
[387839902,1758915047252,-285.79581326,0.000242,2]
[387839903,1758915047261,-151.0,0.0002699,7]
[387839904,1758915047276,-5910.75951048,0.0002744,2]
[387839948,1758915060622,-300.0,0.000242,2]
[387839949,1758915065045,5000.0,0.000242,2]
[387839950,1758915067953,1054.07988828,0.000199,2]
[387839951,1758915070672,-1054.07988817,0.00022844,2]
[387839952,1758915075755,-300.0,0.000242,2]
[387839953,1758915081601,-1054.07988817,0.00024316,2]
[387839954,1758915087178,5000.0,0.00024316,2]
[387839955,1758915110698,-5000.0,0.00023958,2]
[387839956,1758915114114,-227.02588954,0.000242,2]
[387839957,1758915120603,-5000.0,0.0002452,13]
[387839958,1758915134365,-5000.0,0.0002452,2]
[387839959,1758915135820,0.01,0.00022685,8]
[387839960,1758915140761,-5000.0,0.00022458,13]
[387839961,1758915141028,-154.99,0.00022685,8]
[387839962,1758915159647,-5000.0,0.00024367,2]
[387839963,1758915164864,0.01,0.00024367,2]
[387839964,1758915171191,-4999.99,0.00024367,2]
[387839965,1758915185947,-5000.0,0.00024367,2]
[387839966,1758915188252,0.01,0.00024123,13]
[387839967,1758915195943,-4999.99,0.00024123,13]
[387839968,1758915205891,-5000.0,0.00024268,13]
[387839969,1758915211544,0.01,0.00024268,2]
[387839970,1758915211565,4999.99,0.00024268,2]
[387839971,1758915230065,-3582.53466411,0.00024268,13]
[387839972,1758915234610,2834.94067178,0.00024268,2]
[387839973,1758915234645,2165.05932822,0.00024268,2]
[387839974,1758915255982,-3005.56318722,0.00024268,13]
[387839975,1758915257761,3988.88362556,0.00024268,2]
[387839976,1758915257917,1011.11637444,0.00024268,2]
[387839977,1758915267513,1102.68100793,0.000199,2]
[387839978,1758915273657,196.67385239,0.00021372,2]
[387839979,1758915275904,-1102.68100792,0.00021372,2]
[387839980,1758915275933,-1102.68100792,0.00022844,2]
[387839981,1758915279683,-1102.68100792,0.00024316,2]
[387839982,1758915281235,5000.0,0.00024072,2]
[387839983,1758915285835,235.52592866,0.000243,2]
[387839984,1758915300024,-5000.0,0.00024268,13]
[387839985,1758915303122,0.01,0.00019078,2]
[387839986,1758915303146,1619.91371996,0.00019078,2]
[387839987,1758915304216,5000.0,0.00024268,2]
[387839988,1758915320169,5000.0,0.00024268,2]
[387839989,1758915328083,5000.0,0.00024268,13]
[387839990,1758915346199,-5000.0,0.00024255,13]
[387839991,1758915351767,0.01,0.00024255,2]
[387839992,1758915370344,-5000.0,0.00024012,13]
[387840000,1758915395437,-5000.0,0.00024012,13]
[387840001,1758915416045,-5000.0,0.00024012,13]
[387840002,1758915436255,-3902.12186692,0.00024011,13]
[387840006,1758915460574,-3373.20853325,0.00024009,13]
[387840007,1758915465987,868.57363185,0.000199,2]
[387840008,1758915466256,868.57363175,0.00022844,2]
[387840009,1758915466746,868.57363175,0.00021372,2]
[387840010,1758915479980,205.94,0.00018182,2]
[387840011,1758915482540,205.94,0.00018182,2]
[387840012,1758915486500,-1029.710164,0.00023497,2]
[387840013,1758915490862,-5000.0,0.00024009,13]
[387840014,1758915508385,-5000.0,0.00024009,2]
[387840015,1758915520737,-1524.542,0.00024161,5]
[387840016,1758915555156,-5000.0,0.00024009,2]
[387840017,1758915578615,-5000.0,0.00023497,2]
[387840018,1758915578821,-311.757,0.00023543,5]
[387840019,1758915599833,5000.0,0.00024009,2]
[387840020,1758915603093,5295.07628004,0.00019078,2]
[387840021,1758915625111,-5000.0,0.00024009,2]
[387840022,1758915632928,0.01,0.000234,5]
[387840023,1758915640013,-507.093,0.000234,5]
[387840024,1758915640042,-189.243854,0.00023577,2]
[387840025,1758915640071,-2798.53274786,0.00023906,2]
[387840026,1758915640097,-704.12491267,0.00024147,2]
[387840027,1758915647210,5000.0,0.00024147,2]
[387840028,1758915677385,705.55063411,0.000199,2]
[387840029,1758915677847,705.55063402,0.00021372,2]
[387840030,1758915678055,705.55063402,0.00022844,2]
[387840034,1758915819395,403.3611297,0.00023668,2]
[387840035,1758915836305,-10000.0,0.0002348,2]
[387840036,1758915838602,-4354.7715972,0.0002348,2]
[387840037,1758915866628,5000.0,0.00024009,2]
[387840038,1758915880920,633.32045141,0.000199,2]
[387840039,1758915883418,-633.32045115,0.00021372,2]
[387840040,1758915883446,-633.32045115,0.00022844,2]
[387840041,1758915889715,5000.0,0.00024009,2]
[387840053,1758915897974,-1000.0,0.00023456,2]
[387840058,1758915918542,-5000.0,0.00024147,2]
[387840064,1758915924883,-926.44639939,0.00024155,2]
[387840066,1758915928903,3102.76383612,0.00024155,2]
[387840067,1758915936784,2745.78869477,0.00024011,13]
[387840072,1758915952224,1938.76076822,0.00024155,2]
[387840073,1758915954785,153.34000654,0.00024154,2]
[387840074,1758915959118,-1200.0,0.00024254,2]
[387840075,1758915959137,-160.0,0.00024254,2]
[387840076,1758915959158,-633.32045115,0.00024316,2]
[387840077,1758915959176,-300.0,0.00024404,2]
[387840078,1758915959195,-1200.0,0.00024404,2]
[387840079,1758915959213,-300.0,0.00024404,2]
[387840080,1758915959233,-300.0,0.00024404,2]
[387840081,1758915959252,-1004.91265566,0.00024405,2]
[387840082,1758915959272,-4015.630972,0.00024405,2]
[387840083,1758915959292,-153.56425783,0.000245,2]
[387840084,1758915959314,-695.99905304,0.00024606,2]
[387840085,1758915959335,-552.89069698,0.00024606,2]
[387840086,1758915959357,-695.99905304,0.00024606,2]
[387840087,1758915959380,-695.99905304,0.00024606,2]
[387840088,1758915959402,-695.99905304,0.00024606,2]
[387840089,1758915959423,-695.99905304,0.00024606,2]
[387840090,1758915959444,-695.99905304,0.00024606,2]
[387840091,1758915959465,-695.99905304,0.00024606,2]
[387840092,1758915959485,-167.6600721,0.00024606,2]
[387840093,1758915959507,-500.0,0.00024606,2]
[387840094,1758915959530,-500.0,0.00024606,2]
[387840095,1758915959550,-500.0,0.00024606,2]
[387840096,1758915959572,-504.5865825,0.00024606,2]
[387840097,1758915959595,-500.0,0.00024606,2]
[387840098,1758915959617,-695.99905304,0.00024606,2]
[387840099,1758915959639,-500.0,0.00024606,2]
[387840100,1758915959659,-500.0,0.00024606,2]
[387840101,1758915959680,-500.0,0.00024606,2]
[387840102,1758915959702,-530.2091063,0.00024606,2]
[387840103,1758915959722,-500.0,0.00024606,2]
[387840104,1758915959741,-500.0,0.00024606,2]
[387840105,1758915959764,-500.0,0.00024606,2]
[387840106,1758915959786,-695.99905304,0.00024606,2]
[387840107,1758915959806,-500.0,0.00024606,2]
[387840108,1758915959827,-500.0,0.00024606,2]
[387840109,1758915959850,-695.99905304,0.00024606,2]
[387840110,1758915959974,-500.0,0.00024606,2]
[387840111,1758915960003,-500.0,0.00024606,2]
[387840112,1758915960026,-695.99905304,0.00024606,2]
[387840113,1758915960048,-500.0,0.00024606,2]
[387840114,1758915960069,-236.33687878,0.00024606,2]
[387840115,1758915960090,-331.47416178,0.00024606,2]
[387840116,1758915960111,-500.0,0.00024606,2]
[387840117,1758915960134,-695.99905304,0.00024606,2]
[387840118,1758915960157,-695.99905304,0.00024606,2]
[387840119,1758915960179,-695.99905304,0.00024606,2]
[387840120,1758915960204,-695.99905304,0.00024606,2]
[387840121,1758915960227,-695.99905304,0.00024606,2]
[387840122,1758915960249,-695.99905304,0.00024606,2]
[387840123,1758915960273,-695.99905304,0.00024606,2]
[387840124,1758915960295,-695.99905304,0.00024606,2]
[387840125,1758915960317,-751.67897728,0.00024606,2]
[387840126,1758915960339,-751.67897728,0.00024606,2]
[387840127,1758915960361,-751.67897728,0.00024606,2]
[387840128,1758915960383,-751.67897728,0.00024606,2]
[387840129,1758915960405,-751.67897728,0.00024606,2]
[387840130,1758915960428,-751.67897728,0.00024606,2]
[387840131,1758915960449,-751.67897728,0.00024606,2]
[387840132,1758915960469,-751.67897728,0.00024606,2]
[387840133,1758915960490,-751.67897728,0.00024606,2]
[387840134,1758915960510,-499.99999999,0.00024606,2]
[387840135,1758915960532,-50000.0,0.00024607,2]
[387840136,1758915960551,-453.90998057,0.0002461,2]
[387840137,1758915960572,-207.66,0.00024612,2]
[387840138,1758915960592,-258.9768971,0.00024654,2]
[387840139,1758915960612,-169.373291,0.00024654,2]
[387840140,1758915960631,-380.0,0.00024658,2]
[387840141,1758915960650,-151.0,0.00024658,2]
[387840142,1758915960671,-151.0,0.00024658,2]
[387840143,1758915960691,-151.0,0.00024658,2]
[387840144,1758915960711,-151.0,0.00024658,2]
[387840145,1758915960730,-151.0,0.00024658,2]
[387840146,1758915960750,-151.30050291,0.00024658,2]
[387840147,1758915960769,-151.0,0.00024658,2]
[387840148,1758915960789,-151.0,0.00024658,2]
[387840149,1758915960807,-500.0,0.00024658,2]
[387840150,1758915960827,-158.26002673,0.00024658,2]
[387840151,1758915960846,-151.0,0.00024658,2]
[387840152,1758915960866,-500.0,0.00024658,2]
[387840153,1758915960886,-151.0,0.00024658,2]
[387840154,1758915960905,-500.0,0.00024658,2]
[387840155,1758915960926,-500.0,0.00024658,2]
[387840156,1758915960947,-230.64153186,0.00024658,2]
[387840157,1758915960966,-151.0,0.00024658,2]
[387840158,1758915960987,-225.62,0.00024663,10]
[387840159,1758915961007,-188.02,0.00024663,10]
[387840160,1758915961027,-500.0,0.00024673,2]
[387840161,1758915961048,-500.0,0.00024673,2]
[387840162,1758915961068,-500.0,0.00024673,2]
[387840163,1758915961088,-507.19797718,0.00024673,2]
[387840164,1758915961107,-500.0,0.00024673,2]
[387840165,1758915961127,-500.0,0.00024673,2]
[387840166,1758915961146,-410.57779206,0.00024673,2]
[387840167,1758915961166,-500.0,0.00024673,2]
[387840168,1758915961187,-500.0,0.00024673,2]
[387840169,1758915961206,-500.0,0.00024673,2]
[387840170,1758915961226,-500.0,0.00024673,2]
[387840171,1758915961246,-500.0,0.00024673,2]
[387840172,1758915961266,-500.9810205,0.00024673,2]
[387840173,1758915961286,-500.0,0.00024673,2]
[387840174,1758915961307,-500.0,0.00024673,2]
[387840175,1758915961327,-500.0,0.00024673,2]
[387840176,1758915961347,-500.0,0.00024673,2]
[387840177,1758915961368,-500.0,0.00024673,2]
[387840178,1758915961388,-504.04200691,0.00024673,2]
[387840179,1758915961407,-500.0,0.00024673,2]
[387840180,1758915961427,-317.29972179,0.00024673,2]
[387840181,1758915961446,-500.0,0.00024673,2]
[387840182,1758915961465,-500.0,0.00024673,2]
[387840183,1758915961485,-500.0,0.00024673,2]
[387840184,1758915961504,-501.34391062,0.00024673,2]
[387840185,1758915961525,-500.0,0.00024673,2]
[387840186,1758915961545,-500.0,0.00024673,2]
[387840187,1758915961566,-500.0,0.00024673,2]
[387840188,1758915961585,-500.0,0.00024673,2]
[387840189,1758915961608,-500.0,0.00024673,2]
[387840190,1758915961628,-500.0,0.00024673,2]
[387840191,1758915961646,-500.0,0.00024673,2]
[387840192,1758915961666,-501.1278588,0.00024673,2]
[387840193,1758915961686,-500.0,0.00024673,2]
[387840194,1758915961796,-500.0,0.00024673,2]
[387840195,1758915961823,-280.38835653,0.00024673,2]
[387840196,1758915961843,-504.03477072,0.00024673,2]
[387840197,1758915961864,-151.21572017,0.000248,2]
[387840198,1758915961884,-6223.1189782,0.00024847,2]
[387840199,1758915961904,-207.66,0.00024886,2]
[387840200,1758915961926,-9753.54728518,0.000249,2]
[387840201,1758915961946,-151.0,0.00024932,2]
[387840202,1758915961966,-151.0,0.00024932,2]
[387840203,1758915961985,-151.0,0.00024932,2]
[387840204,1758915962005,-151.0,0.00024932,2]
[387840205,1758915962024,-219.23198078,0.00024932,2]
[387840206,1758915962044,-198.91630416,0.00024932,2]
[387840207,1758915962064,-500.0,0.00024932,2]
[387840208,1758915962085,-151.0,0.00024932,2]
[387840209,1758915962106,-500.0,0.00024932,2]
[387840210,1758915962125,-151.0,0.00024932,2]
[387840211,1758915962144,-500.0,0.00024932,2]
[387840212,1758915962165,-500.0,0.00024932,2]
[387840213,1758915962184,-151.0,0.00024932,2]
[387840214,1758915962204,-207.67475481,0.0002516,2]
[387840215,1758915962224,-301.67561036,0.00025206,2]
[387840216,1758915962244,-151.0,0.00025206,2]
[387840217,1758915962264,-500.0,0.00025206,2]
[387840218,1758915962285,-151.0,0.00025206,2]
[387840219,1758915962305,-500.0,0.00025206,2]
[387840220,1758915962325,-151.0,0.00025206,2]
[387840221,1758915962345,-500.0,0.00025206,2]
[387840222,1758915962366,-500.0,0.00025206,2]
[387840223,1758915962387,-151.0,0.00025206,2]
[387840224,1758915962407,-151.21572017,0.00025211,2]
[387840225,1758915962428,-1002.66891558,0.00025221,2]
[387840226,1758915962447,-1000.0,0.00025221,2]
[387840227,1758915962467,-1000.0,0.00025221,2]
[387840228,1758915962486,-1012.16892121,0.00025221,2]
[387840229,1758915962505,-512.24691548,0.00025221,2]
[387840230,1758915962529,-1000.0,0.00025221,2]
[387840231,1758915962550,-1000.0,0.00025221,2]
[387840232,1758915962573,-1000.0,0.00025221,2]
[387840233,1758915962595,-796.33432936,0.00025221,2]
[387840234,1758915962615,-1000.0,0.00025221,2]
[387840235,1758915962635,-1000.0,0.00025221,2]
[387840236,1758915962655,-759.28911623,0.00025221,2]
[387840237,1758915962676,-1000.0,0.00025221,2]
[387840238,1758915962696,-151.0,0.000253,18]
[387840239,1758915962716,-666.0,0.00025346,2]
[387840240,1758915962736,-151.0,0.0002548,2]
[387840241,1758915962757,-151.0,0.0002548,2]
[387840242,1758915962778,-302.0,0.0002548,2]
[387840243,1758915962798,-151.0,0.0002548,2]
[387840244,1758915962817,-303.58499236,0.0002548,2]
[387840245,1758915962838,-500.0,0.0002548,2]
[387840246,1758915962858,-8227.6585023,0.00025517,2]
[387840247,1758915962877,-151.0,0.000257,11]
[387840248,1758915962896,-216.99034262,0.00025754,2]
[387840249,1758915962918,-151.18163937,0.00025754,2]
[387840250,1758915962937,-500.0,0.00025754,2]
[387840251,1758915962958,-1124.75485803,0.00025758,2]
[387840252,1758915967371,-500.0,0.000242,2]
[387840254,1758916002841,273.0,8.8e-07,2]
[387840255,1758916002864,2019.21141985,0.00021128,2]
[387840256,1758916018092,-194.11698866,0.00025754,2]
[387840257,1758916018113,-151.0,0.00025754,2]
[387840258,1758916018134,-163.0,0.00025754,2]
[387840259,1758916018153,-151.0,0.00025754,2]
[387840260,1758916018172,-151.0,0.00025754,2]
[387840261,1758916018192,-209.19111703,0.00025754,2]
[387840262,1758916032081,-290.80888297,0.00025754,2]
[387840263,1758916032101,-151.0,0.00025754,2]
[387840264,1758916032121,-151.0,0.00025754,2]
[387840265,1758916032145,-281.70302615,0.00025754,2]
[387840266,1758916032167,-151.0,0.00025754,2]
[387840267,1758916032187,-151.0,0.00025754,2]
[387840268,1758916032207,-300.0,0.00025757,2]
[387840269,1758916032227,-8628.79242715,0.00025758,2]
[387840270,1758916032246,-1500.0,0.00025768,2]
[387840271,1758916032265,-1500.0,0.00025768,2]
[387840272,1758916032286,-633.32045115,0.00025788,4]
[387840273,1758916032306,-278.28739806,0.00025922,2]
[387840274,1758916032327,-503.35656737,0.00025922,2]
[387840275,1758916032347,-304.03743098,0.00025922,2]
[387840276,1758916032367,-286.1902177,0.00025923,2]
[387840277,1758916032387,-1143.61610994,0.00025923,2]
[387840278,1758916032407,-3065.3793335,0.00025928,2]
[387840279,1758916032425,-500.0,0.00025973,2]
[387840280,1758916032444,-500.0,0.00025973,2]
[387840281,1758916032463,-500.0,0.00025973,2]
[387840282,1758916032483,-500.0,0.00025973,2]
[387840283,1758916032502,-500.0,0.00025973,2]
[387840284,1758916032521,-500.0,0.00025973,2]
[387840285,1758916032543,-500.0,0.00025973,2]
[387840286,1758916032564,-500.0,0.00025973,2]
[387840287,1758916032585,-500.0,0.00025973,2]
[387840288,1758916032605,-500.0,0.00025973,2]
[387840289,1758916032626,-160.0,0.00026014,2]
[387840290,1758916032646,-500.0,0.00026028,2]
[387840291,1758916032665,-151.0,0.00026028,2]
[387840292,1758916032796,-500.0,0.00026028,2]
[387840293,1758916032816,-151.0,0.000261,19]
[387840294,1758916032837,-961.07,0.00026216,2]
[387840295,1758916032858,-531.666,0.00026275,12]
[387840296,1758916032879,-175.37473221,0.00026275,12]
[387840297,1758916032899,-1578.0,0.00026295,2]
[387840298,1758916032920,-426.0,0.00026302,2]
[387840299,1758916032940,-500.0,0.00026302,2]
[387840300,1758916032960,-1500.0,0.00026316,2]
[387840301,1758916032982,-284.80352331,0.00026316,2]
[387840302,1758916033003,-3807.72892016,0.00026421,2]
[387840303,1758916033023,-232.03191325,0.00026516,2]
[387840304,1758916033044,-387.02348789,0.00026516,2]
[387840305,1758916033067,-500.0,0.00026516,2]
[387840306,1758916033088,-500.0,0.00026516,2]
[387840307,1758916033110,-500.0,0.00026516,2]
[387840308,1758916033132,-500.0,0.00026516,2]
[387840309,1758916033153,-500.0,0.00026516,2]
[387840310,1758916033174,-500.0,0.00026516,2]
[387840311,1758916033195,-500.0,0.00026516,2]
[387840312,1758916033217,-500.0,0.00026516,2]
[387840313,1758916033238,-500.0,0.00026516,2]
[387840314,1758916033259,-500.0,0.00026516,2]
[387840315,1758916033281,-500.0,0.00026516,2]
[387840316,1758916033302,-500.0,0.00026516,2]
[387840317,1758916033323,-500.0,0.00026516,2]
[387840318,1758916033346,-383.24375018,0.00026516,2]
[387840319,1758916033367,-516.66666667,0.00026516,2]
[387840320,1758916033388,-516.66666667,0.00026516,2]
[387840321,1758916033410,-516.66666667,0.00026516,2]
[387840322,1758916033432,-516.66666667,0.00026516,2]
[387840323,1758916033453,-516.66666667,0.00026516,2]
[387840324,1758916033474,-516.66666667,0.00026516,2]
[387840325,1758916033495,-516.66666667,0.00026516,2]
[387840326,1758916033517,-516.66666667,0.00026516,2]
[387840327,1758916033540,-516.66666667,0.00026516,2]
[387840328,1758916033560,-600.0,0.00026516,2]
[387840329,1758916033583,-600.0,0.00026516,2]
[387840330,1758916033607,-3645.864318,0.00026517,2]
[387840331,1758916033628,-1000.0,0.00026521,2]
[387840332,1758916033648,-500.98096882,0.00026521,2]
[387840333,1758916033669,-1000.0,0.00026521,2]
[387840334,1758916033689,-1000.0,0.00026521,2]
[387840335,1758916033709,-351.24793627,0.00026521,2]
[387840336,1758916033730,-1000.0,0.00026521,2]
[387840337,1758916033750,-1000.0,0.00026521,2]
[387840338,1758916033771,-1000.0,0.00026521,2]
[387840339,1758916033792,-260.0,0.00026562,2]
[387840340,1758916033813,-1680.0,0.00026574,2]
[387840341,1758916033834,-500.0,0.00026576,2]
[387840342,1758916033854,-151.0,0.000266,13]
[387840343,1758916033874,-3065.37933349,0.00026781,2]
[387840344,1758916033892,-151.21572017,0.00026782,2]
[387840345,1758916033912,-3640.6507017,0.00026801,2]
[387840346,1758916033932,-445.81063658,0.0002685,2]
[387840347,1758916033952,-9753.54728518,0.00026892,2]
[387840348,1758916033971,-151.21572017,0.00026892,2]
[387840349,1758916033992,-296.44,0.00026892,3]
[387840350,1758916034013,-889.33,0.00026892,3]
[387840351,1758916034033,-230.7,0.00026892,10]
[387840352,1758916034053,-192.25,0.00026892,10]
[387840353,1758916034074,-43819.8857539,0.00026902,2]
[387840354,1758916034093,-151.21572017,0.00026969,2]
[387840355,1758916034113,-506.92875789,0.00026973,2]
[387840356,1758916034132,-500.0,0.00026973,2]
[387840357,1758916034151,-500.0,0.00026973,2]
[387840358,1758916034173,-218.77512779,0.00026973,2]
[387840359,1758916034193,-228.54686471,0.00026973,2]
[387840360,1758916034213,-500.0,0.00026973,2]
[387840361,1758916034233,-500.0,0.00026973,2]
[387840362,1758916034252,-501.2679899,0.00026973,2]
[387840363,1758916034271,-500.0,0.00026973,2]
[387840364,1758916034289,-500.0,0.00026973,2]
[387840365,1758916034309,-500.0,0.00026973,2]
[387840366,1758916034328,-44.16367926,0.00026973,2]
[387840367,1758916034699,-286.56000613,0.00026973,2]
[387840368,1758916034717,-500.0,0.00026973,2]
[387840369,1758916034737,-500.0,0.00026973,2]
[387840370,1758916034756,-500.0,0.00026973,2]
[387840371,1758916034775,-500.0,0.00026973,2]
[387840372,1758916034796,-500.0,0.00026973,2]
[387840373,1758916034815,-500.0,0.00026973,2]
[387840374,1758916034833,-500.0,0.00026973,2]
[387840375,1758916034852,-500.0,0.00026973,2]
[387840376,1758916034873,-500.0,0.00026973,2]
[387840377,1758916034896,-500.0,0.00026973,2]
[387840378,1758916034917,-500.0,0.00026973,2]
[387840379,1758916034942,-500.0,0.00026973,2]
[387840380,1758916034965,-500.0,0.00026973,2]
[387840381,1758916034989,-159.13156924,0.00026973,2]
[387840382,1758916035015,-2926.79720928,0.00026973,2]
[387840383,1758916035037,-502.52983463,0.00026973,2]
[387840384,1758916035059,-2507.73238763,0.00026973,2]
[387840385,1758916035080,-231.1597159,0.00026973,2]
[387840386,1758916035102,-9189.97821519,0.00026979,2]
[387840388,1758916047092,-1200.0,0.00026979,2]
[387840389,1758916047114,-563.56906999,0.00026979,2]
[387840390,1758916047134,-19507.0945704,0.0002698,2]
[387840391,1758916047153,-302.43144034,0.0002698,2]
[387840392,1758916047172,-151.0,0.00026989,2]
[387840393,1758916047194,-246.33756732,0.00026989,2]
[387840394,1758916047215,-151.0,0.00026989,2]
[387840395,1758916047237,-151.0,0.00026989,2]
[387840396,1758916047256,-151.0,0.00026989,2]
[387840397,1758916047276,-151.0,0.00026989,2]
[387840398,1758916047296,-151.0,0.00026989,2]
[387840399,1758916047317,-151.0,0.00026989,2]
[387840400,1758916047337,-151.31144613,0.00026989,2]
[387840401,1758916047356,-4193.34541571,0.00026989,2]
[387840402,1758916047377,-151.0,0.00027,18]
[387840403,1758916047396,-592.87,0.00027041,3]
[387840404,1758916047416,-2017.1235006,0.00027051,2]
[387840405,1758916047435,-912.63880976,0.00027068,2]
[387840406,1758916047454,-1500.0,0.00027068,2]
[387840407,1758916047474,-1028.30750259,0.00027068,2]
[387840408,1758916047496,-216.13437948,0.00027068,2]
[387840409,1758916047515,-1500.0,0.00027068,2]
[387840410,1758916047535,-1500.0,0.00027068,2]
[387840411,1758916047558,-800.0,0.00027103,2]
[387840412,1758916047581,-360.0,0.0002711,2]
[387840413,1758916047602,-1000.0,0.00027112,2]
[387840414,1758916047623,-1000.0,0.00027112,2]
[387840415,1758916047644,-1000.0,0.00027112,2]
[387840416,1758916047775,-1000.0,0.00027112,2]
[387840417,1758916047795,-1000.0,0.00027112,2]
[387840418,1758916047816,-788.45181069,0.00027112,2]
[387840419,1758916047837,-500.0,0.00027112,2]
[387840420,1758916047857,-500.0,0.00027112,2]
[387840421,1758916047877,-350.0,0.00027112,2]
[387840422,1758916047897,-500.0,0.00027112,2]
[387840423,1758916047918,-350.0,0.00027112,2]
[387840424,1758916047939,-500.0,0.00027112,2]
[387840425,1758916047959,-350.0,0.00027112,2]
[387840426,1758916047979,-500.0,0.00027112,2]
[387840427,1758916048002,-350.0,0.00027112,2]
[387840428,1758916048023,-500.0,0.00027112,2]
[387840429,1758916048044,-350.0,0.00027112,2]